bitfinex/quotes_ETHUSD_20241120
["timestamp","ask_amount","ask_price","bid_price","bid_amount"]
[1732094303434,0.02,3128.8,3127.2,3.19774]
[1732094303435,0.7732,3128.3,3127.2,4.00374]
[1732094303650,0.7732,3128.3,3127.8,3.19705]
[1732094303834,0.7732,3128.3,3127.9,3.19695]
[1732094304032,0.7732,3128.3,3127.2,0.806]
[1732094304270,0.7732,3128.3,3127.7,3.19721]
[1732094304569,0.55,3128.1,3128.0,3.19691]
[1732094304866,0.1421836,3128.2,3128.1,3.19682]
[1732094308170,0.1421836,3128.2,3128.0,3.19691]
[1732094308669,0.9105836,3128.2,3127.5,4.32704]
[1732094308966,3.74682,3128.1,3127.5,0.3192]
[1732094309168,0.78541236,3128.0,3127.5,3.51658]
[1732094309460,0.78541236,3128.0,3127.5,0.3192]
[1732094309668,0.55,3127.9,3127.4,0.3192]
[1732094309850,0.45323724,3127.8,3127.4,3.51673]
[1732094310821,0.45323724,3127.8,3127.4,0.3192]
[1732094311118,0.55,3127.5,3127.0,3.19793]
[1732094311319,0.55,3127.5,3126.8,0.8104]
[1732094311320,1.001581,3127.5,3126.8,3.19808]
[1732094311534,1.001581,3127.5,3126.5,0.8104]
[1732094311535,3.19755,3127.4,3126.7,3.19818]
[1732094311818,0.55,3127.1,3126.6,3.19836]
[1732094312030,0.7684,3127.0,3126.5,3.19844]
[1732094312409,1.165027,3127.0,3126.4,3.19853]
[1732094312607,3.19826,3126.7,3126.0,3.19888]
[1732094312787,3.74812,3126.9,3126.3,3.19858]
[1732094312983,3.74812,3126.9,3126.1,3.19887]
[1732094313292,0.7684,3127.0,3126.1,3.1988]
[1732094313293,0.55,3126.5,3126.1,3.1988]
[1732094313498,0.55,3126.5,3125.9,3.199]
[1732094313702,3.74848,3126.5,3125.9,3.199]
[1732094314112,3.74848,3126.5,3125.8,0.8104]
[1732094314113,0.374848,3126.5,3126.0,3.19895]
[1732094314317,3.74842,3126.6,3126.0,3.19895]
[1732094314899,0.55,3126.6,3126.1,3.19886]
[1732094315100,0.55,3126.7,3126.1,3.19886]
[1732094315314,0.869819,3126.7,3126.1,3.19886]
[1732094315646,4.068159,3126.7,3126.0,3.19895]
[1732094315822,3.19846,3126.5,3125.8,4.00955]
[1732094315997,0.55,3126.4,3125.8,3.19915]
[1732094316189,0.7684,3126.3,3125.8,3.19915]
[1732094316413,0.7684,3126.3,3125.9,3.19906]
[1732094316703,0.7684,3126.3,3125.7,3.19928]
[1732094317017,0.7684,3126.3,3125.8,3.19916]
[1732094317620,0.7684,3126.3,3125.9,3.19899]
[1732094317937,0.7684,3126.3,3126.0,3.19896]
[1732094318729,0.7684,3126.3,3125.7,3.19924]
[1732094318909,0.7684,3126.3,3125.9,3.19905]
[1732094320227,0.55,3126.5,3126.0,3.19888]
[1732094320729,0.55,3126.6,3126.0,3.19888]
[1732094320936,0.55,3126.6,3126.1,3.19885]
[1732094321096,1.001668,3126.6,3126.1,3.19885]
[1732094321498,1.001668,3126.6,3126.2,3.19873]
[1732094321694,0.7671,3127.0,3126.5,3.19839]
[1732094322326,1.163584,3127.0,3126.6,3.19836]
[1732094322731,1.163584,3127.0,3126.5,3.19838]
[1732094323101,1.163584,3127.0,3126.7,3.1982]
[1732094323339,0.7671,3127.0,3126.7,3.1982]
[1732094323641,0.7671,3127.0,3126.8,3.19812]
[1732094323840,0.7671,3127.0,3126.6,3.19829]
[1732094323997,0.7671,3127.0,3126.6,3.19835]
[1732094324798,0.7671,3127.0,3126.3,3.19866]
[1732094325024,3.9651,3127.0,3126.4,3.19853]
[1732094325364,0.7671,3127.0,3126.6,3.19833]
[1732094325563,0.55,3126.9,3126.6,3.19833]
[1732094325774,0.55,3126.9,3126.1,0.7714]
[1732094326067,3.74811,3126.9,3126.2,3.19869]
[1732094326874,3.74811,3126.9,3126.3,3.19866]
[1732094327038,0.55,3126.9,3126.3,3.19866]
[1732094327241,0.55,3126.9,3126.5,3.19836]
[1732094327438,0.55,3126.9,3126.7,3.19823]
[1732094327643,0.7671,3127.0,3126.6,3.1983]
[1732094328042,0.7671,3127.0,3126.6,6.39658]
[1732094328224,0.7671,3127.0,3126.7,3.19824]
[1732094328425,0.7671,3127.0,3126.6,3.19828]
[1732094328796,0.7671,3127.0,3126.8,3.19811]
[1732094330439,0.7671,3127.0,3126.8,3.19809]
[1732094330658,0.7671,3127.0,3126.9,3.19805]
[1732094330873,0.7671,3127.0,3126.6,3.19831]
[1732094331169,0.7671,3127.0,3126.7,3.19817]
[1732094331371,0.7671,3127.0,3126.1,0.7714]
[1732094331372,0.7671,3127.0,3126.5,3.19843]
[1732094331537,0.7671,3127.0,3126.4,3.19849]
[1732094331866,0.7671,3127.0,3126.5,3.19846]
[1732094331867,0.396498,3126.9,3126.5,3.19846]
[1732094332036,0.7671,3127.0,3126.5,3.19846]
[1732094332667,0.7671,3127.0,3126.8,3.19805]
[1732094332956,0.7671,3127.0,3126.7,3.19819]
[1732094333693,0.7671,3127.0,3126.1,3.19885]
[1732094333694,0.55,3126.6,3126.1,3.19885]
[1732094333987,0.55,3126.4,3125.9,3.199]
[1732094334189,3.74856,3126.4,3125.9,3.199]
[1732094334392,3.74856,3126.4,3125.7,3.19924]
[1732094334393,0.55,3126.4,3125.7,3.19924]
[1732094334691,3.74858,3126.4,3125.7,3.19924]
[1732094334892,4.519987,3126.4,3125.7,3.19924]
[1732094335188,4.519977,3126.4,3125.9,3.199]
[1732094335794,1.321407,3126.4,3126.0,3.19895]
[1732094335958,3.19874,3126.3,3125.6,3.1993]
[1732094336157,3.74865,3126.4,3125.7,3.19921]
[1732094336484,0.55,3126.1,3125.6,3.1993]
[1732094337193,0.55,3126.2,3125.7,3.19927]
[1732094337660,0.55,3126.3,3125.7,3.19927]
[1732094338801,3.74873,3126.3,3125.7,3.19927]
[1732094339091,0.55,3126.3,3125.9,3.19906]
[1732094339258,0.55,3126.4,3125.9,3.19904]
[1732094339995,0.55,3126.4,3125.5,3.19948]
[1732094340173,0.7671,3126.5,3126.1,3.1988]
[1732094340500,0.7671,3126.8,3126.4,3.19855]
[1732094340700,0.7671,3126.8,3126.5,3.19843]
[1732094340997,0.7671,3126.8,3126.4,3.19855]
[1732094341152,0.7671,3126.8,3126.5,3.19841]
[1732094341354,0.7671,3127.1,3126.6,3.19831]
[1732094341580,0.7671,3127.1,3126.6,3.19832]
[1732094341791,0.396491,3127.0,3126.6,3.19826]
[1732094342101,0.396491,3127.0,3126.4,3.1985]
[1732094342102,3.19796,3127.0,3126.4,3.1985]
[1732094343498,3.19796,3127.0,3126.4,6.39699]
[1732094343789,0.55,3127.0,3126.4,3.19849]
[1732094343990,0.7671,3127.1,3126.1,3.19887]
[1732094344195,0.7671,3127.1,3126.8,3.19809]
[1732094344869,0.7671,3127.1,3126.6,3.19829]
[1732094345076,0.7671,3127.1,3126.1,0.3192]
[1732094345269,0.7671,3127.1,3126.2,3.19877]
[1732094345465,0.7671,3127.1,3126.7,3.19819]
[1732094345697,0.7671,3127.1,3126.7,6.39637]
[1732094345898,0.7671,3127.1,3126.8,3.19811]
[1732094346066,0.7671,3127.1,3126.9,3.19796]
[1732094346397,0.7671,3127.1,3126.8,3.19811]
[1732094346599,0.7671,3127.1,3126.8,6.39619]
[1732094346796,0.7671,3127.1,3126.8,3.19808]
[1732094347899,0.7671,3127.1,3127.0,3.19795]
[1732094348385,0.55,3127.5,3127.1,3.19778]
[1732094348759,0.55,3127.5,3127.2,3.19772]
[1732094349070,0.55,3127.5,3127.0,3.19795]
[1732094349364,0.55,3127.3,3127.0,3.19795]
[1732094349794,0.55,3127.5,3127.0,3.19795]
[1732094350869,3.74744,3127.5,3126.8,3.19812]
[1732094351207,0.55,3127.3,3126.9,3.19801]
[1732094351623,3.74754,3127.4,3126.9,3.19803]
[1732094351798,0.55,3127.3,3126.7,3.19823]
[1732094352104,3.74785,3127.1,3126.5,3.19841]
[1732094352317,4.255555,3127.1,3126.6,3.19832]
[1732094352479,1.057705,3127.1,3126.6,3.19832]
[1732094352685,0.55,3127.1,3126.7,3.19823]
[1732094352868,0.55,3127.1,3126.3,3.19866]
[1732094353075,0.55,3127.1,3126.6,3.1983]
[1732094353076,1.0401664,3127.1,3126.6,3.1983]
[1732094353695,4.2380464,3127.1,3126.6,3.1983]
[1732094353898,1.0401664,3127.1,3126.6,3.1983]
[1732094354211,0.55,3127.1,3126.2,0.7935]
[1732094354412,0.55,3127.1,3126.8,3.19807]
[1732094355165,0.55,3127.1,3126.8,3.19814]
[1732094355299,0.55,3127.1,3126.6,3.19826]
[1732094355494,0.55,3127.1,3126.7,3.19824]
[1732094355701,0.55,3127.1,3126.8,3.19814]
[1732094356297,0.55,3127.1,3127.0,3.19795]
[1732094356501,1.3292,3127.2,3127.1,3.19785]
[1732094356808,0.55,3127.2,3127.1,3.19785]
[1732094357215,0.55,3127.3,3127.1,6.3957]
[1732094357383,0.55,3127.3,3127.1,3.19778]
[1732094357998,0.55,3127.3,3127.2,3.19774]
[1732094358230,0.55,3127.3,3126.9,3.19798]
[1732094358586,0.55,3127.3,3126.6,3.19828]
[1732094358925,0.55,3127.3,3126.8,3.19807]
[1732094359111,3.74773,3127.3,3126.7,3.19822]
[1732094359313,3.74773,3127.3,3126.6,3.19828]
[1732094359528,3.74773,3127.3,3126.8,3.19815]
[1732094359830,3.74773,3127.3,3126.6,3.19828]
[1732094359983,0.55,3127.3,3126.7,3.19819]
[1732094360326,0.55,3127.3,3126.3,0.7935]
[1732094360327,2.88412413,3127.4,3126.3,0.7935]
[1732094360483,1.3292,3126.7,3126.0,3.19897]
[1732094360681,0.55,3126.5,3126.1,3.19886]
[1732094361120,0.55,3126.5,3126.0,3.19894]
[1732094361485,0.55,3126.6,3126.3,3.19858]
[1732094361916,0.7792,3126.7,3125.9,0.3192]
[1732094362117,0.55,3126.6,3126.2,3.19873]
[1732094362318,0.55,3126.6,3126.2,6.39743]
[1732094362531,0.55,3126.6,3126.4,3.19849]
[1732094362688,0.55,3126.6,3126.2,3.19873]
[1732094363194,0.55,3126.6,3126.0,3.19894]
[1732094363195,0.55,3126.6,3126.0,3.19897]
[1732094363398,0.55,3126.6,3126.1,3.19886]
[1732094363779,0.55,3126.6,3126.2,3.19876]
[1732094364297,0.55,3126.6,3126.2,3.1987]
[1732094364525,3.74836,3126.6,3126.1,3.19885]
[1732094364844,0.55,3126.6,3126.2,3.19876]
[1732094364989,0.55,3126.6,3126.1,3.1988]
[1732094366084,0.55,3126.6,3126.2,3.19875]
[1732094366287,0.55,3126.6,3126.1,3.19886]
[1732094366519,3.7484,3126.6,3126.1,3.19886]
[1732094367137,0.55,3126.6,3126.2,3.19876]
[1732094367542,0.55,3126.6,3126.4,3.19856]
[1732094368052,0.767,3127.0,3126.4,3.1985]
[1732094368376,0.767,3127.0,3126.6,3.19836]
[1732094368663,0.767,3127.0,3126.7,3.19819]
[1732094369151,0.55,3126.9,3126.7,3.19819]
[1732094369712,0.55,3126.9,3126.7,3.1982]
[1732094370056,0.767,3127.0,3126.7,3.19818]
[1732094370243,0.7474097,3127.0,3126.8,3.19812]
[1732094371459,0.7474097,3127.0,3126.7,6.39635]
[1732094371659,0.7474097,3127.0,3126.7,3.19817]
[1732094371865,0.7474097,3127.0,3126.2,3.97633]
[1732094371866,0.01,3128.6,3126.8,0.7611]
[1732094372159,3.19683,3128.1,3127.5,3.19739]
[1732094372377,0.33390136,3128.0,3127.5,3.19739]
[1732094373232,0.55,3127.9,3127.5,3.19743]
[1732094373956,0.55,3127.9,3127.7,3.19714]
[1732094374164,0.8247,3128.0,3127.9,3.19703]
[1732094374325,0.9668836,3128.2,3127.9,3.19703]
[1732094374532,0.9668836,3128.2,3127.8,3.19711]
[1732094375068,0.9668836,3128.2,3127.9,3.19695]
[1732094375643,0.55,3128.1,3128.0,3.19693]
[1732094375844,0.55,3128.1,3127.9,3.19695]
[1732094376635,0.55,3128.1,3128.0,3.19693]
[1732094377635,0.55,3128.1,3127.7,3.19719]
[1732094377836,0.55,3128.1,3127.4,0.7611]
[1732094378038,0.55,3128.1,3128.0,3.19693]
[1732094378260,0.55,3128.1,3127.4,0.7611]
[1732094378261,0.55,3128.1,3127.8,3.19705]
[1732094378465,0.55,3128.1,3127.9,3.19696]
[1732094378662,0.55,3128.1,3128.0,3.19693]
[1732094378833,0.1421836,3128.2,3128.0,3.19693]
[1732094379041,0.1421836,3128.2,3128.1,3.19682]
[1732094379732,0.1421836,3128.2,3128.1,6.19682]
[1732094385377,0.1421836,3128.2,3128.1,3.19682]
[1732094394889,0.1421836,3128.2,3127.9,3.19696]
[1732094395213,0.55,3128.1,3127.9,3.19696]
[1732094395391,0.1421836,3128.2,3127.6,3.19733]
[1732094395602,0.1421836,3128.2,3127.9,3.19697]
[1732094395890,0.1421836,3128.2,3127.9,3.19695]
[1732094396251,0.1421836,3128.2,3128.0,3.19692]
[1732094396461,0.1421836,3128.2,3127.9,3.19695]
[1732094396462,0.1421836,3128.2,3128.1,3.19682]
[1732094396667,0.6921836,3128.2,3128.1,3.19682]
[1732094397469,0.1421836,3128.2,3128.1,3.19682]
[1732094402069,0.1421836,3128.2,3128.1,3.21631097]
[1732094402508,0.1421836,3128.2,3128.1,3.19682]
[1732094404414,0.0921836,3128.2,3128.1,3.19682]
[1732094408784,0.0921836,3128.2,3128.1,3.51602]
[1732094409616,0.0921836,3128.2,3128.1,3.19682]
[1732094411828,0.0921836,3128.2,3128.0,3.19687]
[1732094412017,0.7929,3128.1,3126.9,0.8143]
[1732094412214,0.7929,3128.1,3127.7,3.19719]
[1732094412421,0.7929,3128.1,3127.9,3.19702]
[1732094412618,0.7929,3128.1,3128.0,3.19693]
[1732094412835,1.3429,3128.1,3128.0,3.19693]
[1732094413023,1.3429,3128.1,3127.9,3.19702]
[1732094413350,0.55,3128.0,3127.9,3.19702]
[1732094413517,0.55,3128.0,3127.7,3.19715]
[1732094413917,0.55,3128.0,3127.8,3.1971]
[1732094414238,0.55,3128.0,3127.7,3.19715]
[1732094414537,0.55,3128.0,3127.9,3.19703]
[1732094414741,0.0921836,3128.2,3128.1,3.19682]
[1732094416649,0.0921836,3128.2,3128.1,4.00112]
[1732094416817,0.0921836,3128.2,3128.1,4.32032]
[1732094417232,0.0921836,3128.2,3128.1,4.34433381]
[1732094418555,0.7929,3129.7,3129.4,3.19548]
[1732094418900,0.7929,3129.7,3129.2,6.39125]
[1732094419121,1.191694,3129.7,3129.3,3.19557]
[1732094419436,1.191694,3129.7,3129.2,3.19562]
[1732094419744,4.386904,3129.7,3129.0,3.1959]
[1732094419942,0.4386904,3129.6,3128.7,0.8043]
[1732094420145,1.191694,3129.7,3129.2,3.19562]
[1732094420350,0.7929,3129.7,3129.4,3.19543]
[1732094420859,0.7929,3129.7,3129.4,3.19542]
[1732094421063,0.7929,3129.7,3128.7,0.8043]
[1732094421273,1.191695,3129.7,3129.3,3.19559]
[1732094421863,0.55,3129.6,3129.3,3.19559]
[1732094424363,0.55,3129.6,3129.5,3.19539]
[1732094424571,0.55,3129.9,3129.3,3.19552]
[1732094424858,0.948773,3129.9,3129.3,6.39104]
[1732094425066,0.948773,3129.9,3129.4,3.19543]
[1732094425561,0.948773,3129.9,3129.3,3.19552]
[1732094426232,1.2738583,3129.8,3129.3,3.19552]
[1732094426445,0.55,3129.7,3129.3,3.19552]
[1732094427038,0.55,3129.7,3129.3,6.39105]
[1732094427240,0.55,3129.7,3129.4,3.19548]
[1732094427625,0.55,3129.7,3129.3,3.19556]
[1732094427869,0.55,3129.7,3129.3,6.39108]
[1732094428273,0.55,3129.7,3129.4,3.19549]
[1732094429028,0.55,3129.7,3129.5,3.19539]
[1732094429265,0.55,3129.7,3129.5,3.19531]
[1732094430482,0.55,3129.7,3129.5,3.19538]
[1732094430773,0.55,3129.7,3129.4,3.19548]
[1732094431073,0.55,3129.7,3129.5,3.19531]
[1732094431373,0.55,3129.7,3129.6,3.19529]
[1732094431560,0.55,3129.7,3129.0,3.19587]
[1732094431746,0.55,3129.7,3129.6,3.19529]
[1732094432271,0.7802,3129.8,3129.6,3.25592552]
[1732094432569,0.7802,3129.8,3129.6,0.06063552]
[1732094432934,0.7802,3129.8,3129.5,3.19538]
[1732094433134,1.3302,3129.8,3129.7,0.06052463]
[1732094433365,1.3302,3129.8,3129.5,3.19538]
[1732094433562,1.3302,3129.8,3129.7,0.06052463]
[1732094433773,1.3302,3129.8,3129.6,3.25585153]
[1732094434087,1.3302,3129.8,3129.7,0.06052463]
[1732094434469,1.3302,3129.8,3129.4,6.39086]
[1732094434680,1.3302,3129.8,3129.5,3.2559276]
[1732094435046,1.3302,3129.8,3129.6,3.19522]
[1732094435304,1.3302,3129.8,3129.7,0.0604938]
[1732094436479,1.3302,3129.8,3129.7,3.2556838]
[1732094437972,1.3302,3129.8,3129.7,0.0604938]
[1732094438173,1.3302,3129.8,3129.5,3.1953]
[1732094438371,1.3302,3129.8,3129.7,0.0604938]
[1732094438889,1.3302,3129.8,3129.5,3.1953]
[1732094439050,1.3302,3129.8,3129.6,0.0605307]
[1732094440488,0.55,3129.7,3129.3,3.19555]
[1732094440697,0.55,3129.7,3129.2,3.19563]
[1732094440995,0.55,3129.7,3129.3,3.19557]
[1732094441611,0.55,3129.7,3129.3,6.39111]
[1732094441771,0.55,3129.7,3129.3,3.19554]
[1732094441968,0.55,3129.7,3129.4,3.19548]
[1732094443714,0.55,3129.7,3129.5,3.19539]
[1732094446523,0.55,3129.7,3129.6,3.19529]
[1732094446814,0.7802,3129.8,3129.6,3.19529]
[1732094447177,1.3302,3129.8,3129.7,0.06045786]
[1732094447374,0.55,3129.8,3129.7,0.06045786]
[1732094447576,0.55,3130.0,3129.7,0.06045786]
[1732094447825,0.55,3130.0,3129.7,3.25564786]
[1732094448109,0.55,3130.0,3129.7,0.06045786]
[1732094449433,0.55,3130.0,3129.7,3.25558786]
[1732094450522,0.55,3130.0,3129.8,3.19507]
[1732094450708,0.55,3130.0,3129.7,0.06045786]
[1732094451137,0.55,3130.0,3129.7,3.19513]
[1732094451333,0.55,3130.0,3129.8,0.06042097]
[1732094451697,0.55,3130.0,3129.7,3.19513]
[1732094451897,0.55,3130.0,3129.8,0.06042097]
[1732094452127,0.55,3130.0,3129.8,3.19503]
[1732094452338,0.55,3130.0,3129.9,0.06038408]
[1732094452720,0.55,3130.0,3129.9,3.25537408]
[1732094452924,0.01,3130.7,3129.9,3.25537408]
[1732094452925,0.01,3131.6,3130.6,3.19418]
[1732094453231,2.44262568,3132.1,3130.6,3.19418]
[1732094453232,3.96915,3131.5,3130.8,0.777]
[1732094453398,3.96915,3131.5,3130.8,3.97101]
[1732094453595,3.96915,3131.5,3130.9,0.05997847]
[1732094454135,3.19321,3131.7,3131.0,3.19378]
[1732094454292,0.1421836,3131.3,3131.0,3.1938]
[1732094454632,0.1421836,3131.3,3131.1,3.25364257]
[1732094454995,0.1421836,3131.3,3131.2,3.19366]
[1732094455196,0.1421836,3131.3,3131.1,3.25364257]
[1732094455442,0.1421836,3131.3,3131.2,0.05200815]
[1732094455729,0.1421836,3131.3,3130.4,3.19438]
[1732094455730,4.1115436,3131.3,3130.5,3.19429]
[1732094455933,4.1115436,3131.3,3130.2,2.09879839]
[1732094455934,4.1115436,3131.3,3131.2,0.04680298]
[1732094456107,4.1115436,3131.3,3130.6,3.19426]
[1732094456307,0.5433342,3131.2,3130.7,0.04383468]
[1732094456640,0.55,3131.2,3130.7,0.04383468]
[1732094456935,0.55,3131.2,3130.6,3.19426]
[1732094457139,0.55,3131.2,3130.8,4.0119119]
[1732094457441,0.55,3131.2,3130.8,3.97106]
[1732094457596,0.55,3131.2,3130.9,0.0381387]
[1732094458816,4.51966,3131.0,3130.9,0.0381387]
[1732094459009,3.74406,3130.9,3130.1,3.1947]
[1732094459433,3.74406,3130.9,3130.2,0.03631456]
[1732094459638,3.19407,3130.8,3130.2,0.03631456]
[1732094459801,1.3258,3130.5,3130.2,0.03631456]
[1732094460148,0.55,3130.3,3129.7,3.51431]
[1732094460449,0.55,3130.3,3129.0,3.19581]
[1732094460450,3.7448,3130.1,3129.4,3.19549]
[1732094460818,3.7448,3130.1,3129.5,3.19539]
[1732094461235,3.7448,3130.1,3129.4,3.19549]
[1732094461415,0.55,3129.9,3129.4,3.19549]
[1732094461617,1.3258,3129.9,3129.3,0.777]
[1732094461822,4.5208,3129.9,3129.2,3.19568]
[1732094462251,1.3258,3129.9,3129.3,3.23224873]
[1732094462411,0.55,3129.9,3129.4,3.19549]
[1732094462605,0.55,3129.9,3129.3,0.03665873]
[1732094462606,0.55,3130.0,3129.3,0.03665873]
[1732094462828,3.74529,3129.6,3129.5,0.03654876]
[1732094463120,3.19559,3129.4,3128.8,0.3192]
[1732094463318,0.55,3129.3,3128.8,0.3192]
[1732094463514,0.55,3129.3,3128.8,3.51531]
[1732094463846,0.55,3129.6,3129.0,3.1959]
[1732094464347,3.74531,3129.6,3129.0,3.1959]
[1732094464547,3.74531,3129.6,3129.1,3.1958]
[1732094464770,3.74531,3129.6,3129.0,3.19589]
[1732094465247,0.55,3129.6,3129.2,3.19567]
[1732094465411,0.55,3129.7,3129.2,3.19567]
[1732094465607,0.7758,3130.0,3129.3,0.777]
[1732094465824,3.19512,3129.8,3129.3,0.777]
[1732094466023,3.19504,3129.9,3129.3,0.777]
[1732094466226,3.19512,3129.8,3129.2,3.19567]
[1732094466954,0.55,3129.9,3129.3,3.19558]
[1732094467105,3.74499,3129.9,3129.4,0.777]
[1732094467444,0.55,3130.1,3129.4,0.777]
[1732094467645,0.55,3129.9,3129.4,0.777]
[1732094467808,3.97031,3130.4,3129.4,0.777]
[1732094468003,3.97031,3130.4,3129.6,3.19522]
[1732094468245,3.97031,3130.4,3129.8,3.19499]
[1732094468456,3.19451,3130.4,3129.8,3.19499]
[1732094468607,3.19451,3130.4,3129.9,0.03642521]
[1732094468942,0.01,3131.0,3130.1,3.97172]
[1732094468943,3.96969,3131.0,3130.1,3.97172]
[1732094469102,3.96969,3131.0,3130.1,0.777]
[1732094469307,3.19415,3130.8,3130.2,0.03631457]
[1732094469508,6.38832,3130.8,3130.2,0.03631457]
[1732094469723,0.7758,3131.0,3130.3,3.19449]
[1732094469724,3.96969,3131.0,3130.3,3.19449]
[1732094469944,3.19368,3131.2,3130.3,3.19449]
[1732094469945,3.19368,3131.2,3130.5,3.19431]
[1732094470158,3.19404,3130.9,3130.4,0.0361804]
[1732094470337,3.19404,3130.9,3130.6,0.03613793]
[1732094470519,3.19404,3130.9,3130.2,3.19465]
[1732094470847,0.9136836,3131.3,3130.7,0.0360698]
[1732094471046,4.1072636,3131.3,3130.1,0.7628]
[1732094471247,0.1421836,3131.3,3130.8,0.03609337]
[1732094471558,0.1421836,3131.3,3130.7,3.95687]
[1732094471559,0.1421836,3131.3,3130.9,0.03605651]
[1732094471847,0.1421836,3131.3,3130.7,0.7628]
[1732094472151,0.1421836,3131.3,3131.1,3.19375]
[1732094472628,0.1421836,3131.3,3131.2,0.03594545]
[1732094473146,0.1421836,3131.3,3131.0,3.19386]
[1732094473351,0.1421836,3131.3,3130.8,3.19402]
[1732094473645,0.1421836,3131.3,3131.1,0.03228296]
[1732094473807,0.1421836,3131.3,3130.8,3.19406]
[1732094474013,0.1421836,3131.3,3131.2,0.03140859]
[1732094474507,0.55,3131.2,3130.9,3.19393]
[1732094474718,0.55,3131.2,3131.0,0.03148229]
[1732094474938,0.55,3131.2,3130.8,3.19406]
[1732094475140,0.55,3131.2,3131.1,0.03144544]
[1732094475382,0.55,3131.2,3130.8,3.19406]
[1732094475552,0.55,3131.2,3131.1,0.03144544]
[1732094475758,0.55,3131.2,3130.7,0.7628]
[1732094476045,4.55082,3131.2,3130.5,3.19436]
[1732094476645,0.55,3131.2,3130.8,0.7628]
[1732094476810,0.55,3131.2,3130.8,3.95681]
[1732094477010,0.55,3131.2,3130.8,0.7628]
[1732094477258,0.55,3131.2,3130.9,0.03129127]
[1732094477627,0.55,3131.2,3130.8,0.7628]
[1732094477823,0.55,3131.2,3130.4,3.19445]
[1732094477824,3.19379,3131.1,3131.0,0.03125442]
[1732094478035,3.74379,3131.1,3130.9,0.03129127]
[1732094478252,0.55,3131.0,3130.5,0.7628]
[1732094478559,3.74366,3131.2,3130.5,0.7628]
[1732094478708,0.55,3131.2,3130.5,0.7628]
[1732094478913,0.55,3131.2,3130.7,3.19409]
[1732094479641,0.1421836,3131.3,3130.9,3.19395]
[1732094479976,0.1421836,3131.3,3130.8,3.19406]
[1732094481364,0.1421836,3131.3,3130.5,0.7628]
[1732094481566,0.1421836,3131.3,3131.2,3.19366]
[1732094481749,0.1421836,3131.3,3131.2,3.95646]
[1732094481949,0.1421836,3131.3,3131.2,3.19366]
[1732094482163,0.1421836,3131.3,3131.2,3.95646]
[1732094482953,0.1421836,3131.3,3131.2,0.7628]
[1732094483173,0.1421836,3131.3,3131.2,3.95646]
[1732094483541,0.1421836,3131.3,3131.2,0.7628]
[1732094483883,0.1421836,3131.3,3131.2,1.082]
[1732094485554,0.1421836,3131.3,3131.2,4.27566]
[1732094486173,0.1421836,3131.3,3131.2,1.082]
[1732094486344,0.1421836,3131.3,3131.2,4.27566]
[1732094487462,0.1421836,3131.3,3131.2,1.082]
[1732094487666,0.1421836,3131.3,3131.1,0.3192]
[1732094489189,0.1421836,3131.3,3131.1,3.51296]
[1732094489492,0.1421836,3131.3,3131.2,3.19366]
[1732094490795,0.1421836,3131.3,3131.1,0.3192]
[1732094491296,0.1421836,3131.3,3131.2,3.19366]
[1732094491479,0.1421836,3131.3,3131.2,4.26576]
[1732094494807,0.1421836,3131.3,3131.2,7.26576]
[1732094495014,2.44262568,3132.1,3132.0,3.94574]
[1732094495172,2.44262568,3132.1,3132.0,4.26494]
[1732094496901,2.44262568,3132.1,3132.0,7.36427731]
[1732094497933,2.44262568,3132.1,3132.0,4.26494]
[1732094499577,2.44262568,3132.1,3132.0,1.0721]
[1732094499801,2.44262568,3132.1,3131.9,3.51214]
[1732094500116,2.44262568,3132.1,3132.0,3.19284]
[1732094502521,2.44262568,3132.1,3131.9,3.51214]
[1732094502686,0.8299,3132.0,3131.4,0.3192]
[1732094502897,2.44262568,3132.1,3131.7,3.19315]
[1732094503083,2.44262568,3132.1,3132.0,3.19284]
[1732094503274,2.44262568,3132.1,3131.6,0.8296]
[1732094503476,2.44262568,3132.1,3132.0,3.19284]
[1732094504378,2.44262568,3132.1,3132.0,4.02244]
[1732094505093,2.44262568,3132.1,3132.0,7.38144]
[1732094505275,2.44262568,3132.1,3132.0,4.02244]
[1732094506011,2.44262568,3132.1,3131.6,0.8296]
[1732094506312,2.44262568,3132.1,3131.8,3.19303]
[1732094506485,2.44262568,3132.1,3131.8,3.19304]
[1732094507014,2.44262568,3132.1,3131.6,4.02277]
[1732094507221,2.44262568,3132.1,3131.9,3.19287]
[1732094508010,2.44262568,3132.1,3131.9,3.19286]
[1732094508174,2.44262568,3132.1,3131.8,3.19303]
[1732094508372,2.44262568,3132.1,3131.9,3.19288]
[1732094508786,2.44262568,3132.1,3132.0,3.19284]
[1732094509781,2.44262568,3132.1,3132.0,4.02244]
[1732094510225,2.44262568,3132.1,3132.0,4.34164]
[1732094516123,2.44262568,3132.1,3132.0,3.51204]
[1732094516490,2.44262568,3132.1,3131.9,3.19288]
[1732094516709,2.44262568,3132.1,3132.0,3.19284]
[1732094518253,2.44262568,3132.1,3132.0,3.51204]
[1732094518611,2.44262568,3132.1,3132.0,3.19284]
[1732094519846,2.44262568,3132.1,3132.0,4.02244]
[1732094520031,2.44262568,3132.1,3132.0,4.34164]
[1732094520355,2.44262568,3132.1,3132.0,7.34164]
[1732094520554,2.44262568,3132.1,3132.0,4.02244]
[1732094520849,2.44262568,3132.1,3132.0,3.19284]
[1732094521261,0.153271,3132.9,3132.8,4.02163]